[Event "45th FIDE Womens Olympiad 2024"]
[Site "Budapest"]
[Date "2024.09.12"]
[Round "2.21"]
[White "Asha huang Limboo"]
[Black "Chen, Chi"]
[Result "0-1"]
[ECO "B47"]
[WhiteElo "1420"]
[BlackElo "1746"]
[Annotator "NA"]
[PlyCount "64"]
[EventDate "2024.09.05"]
[EventType "team-tourn"]
[EventCountry "HUN"]
[SourceTitle "playchess.com"]
[Source "ChessBase"]
[SourceQuality "1"]
[WhiteTeam "Bhutan"]
[BlackTeam "Chinese Taipei"]
[WhiteTeamCountry "BTN"]
[BlackTeamCountry "TPE"]
[TimeControl "40/5400+30:1800+30"]

1. e4 c5 2. Nf3 e6 3. Nc3 Nc6 4. d4 cxd4 5. Nxd4 Qc7 6. Bc4 a6 7. Be3 Nf6 8. Qf3 Nxd4 9. Bxd4 Qxc4 10. Bxf6 gxf6 11. Qxf6 Rg8 12. Rd1 Bg7 13. Qf3 Bxc3+ 14. bxc3 b5 15. Rd4 Qc6 16. O-O Bb7 17. Rfd1 Rd8 18. Qh3 Qc5 19. Qxh7 Qg5 20. g3 Ke7 21. Re1 Rh8 22. h4 Qg4 23. e5 Qh3 24. Qe4 Bxe4 25. Rexe4 Rc8 26. Re3 Rc4 27. Rd6 Rg4 28. Red3 Rhxh4 29. Rxd7+ Kf8 30. f4 Rxg3+ 31. Rxg3 Qxg3+ 32. Kf1 Rh2 0-1

[Event "45th FIDE Womens Olympiad 2024"]
[Site "Budapest"]
[Date "2024.09.12"]
[Round "2.22"]
[White "Limontaite, Simona"]
[Black "Buksa, Nataliya"]
[Result "0-1"]
[ECO "D36"]
[WhiteElo "2177"]
[BlackElo "2387"]
[Annotator "TA"]
[PlyCount "58"]
[EventDate "2024.09.05"]
[EventType "team-tourn"]
[EventCountry "HUN"]
[SourceTitle "playchess.com"]
[Source "ChessBase"]
[SourceQuality "1"]
[WhiteTeam "Lithuania"]
[BlackTeam "Ukraine"]
[WhiteTeamCountry "LTU"]
[BlackTeamCountry "UKR"]
[TimeControl "40/5400+30:1800+30"]

{[%evp 24,58,17,12,14,9,7,3,17,14,19,18,11,11,24,6,4,0,39,0,11,9,18,14,47,6,22,0,49,0,56,-32,10,-233,-240,-699,-374]} 1. d4 {[%emt 0:00:03]} Nf6 {[%emt 0:00:24]} 2. c4 {[%emt 0:00:14]} e6 {[%emt 0:00:04]} 3. Nc3 {[%emt 0:00:17]} d5 {[%emt 0:00:04]} 4. cxd5 {[%emt 0:01:56]} exd5 {[%emt 0:00:06]} 5. Bg5 {[%emt 0:01:20]} Nbd7 {[%emt 0:03:22]} 6. e3 {[%emt 0:02:13]} c6 {[%emt 0:00:41]} 7. Bd3 {[%emt 0:03:50]} Be7 {[%emt 0:00:26]} 8. Nf3 {[%emt 0:05:22]} h6 {[%emt 0:03:17]} 9. Bh4 {[%emt 0:09:13]} O-O {[%emt 0:01:17]} 10. Qc2 {[%emt 0:00:57]} Re8 {[%emt 0:00:32]} 11. O-O {[%emt 0:01:24]} Ne4 {[%emt 0:02:36]} 12. Bxe7 {[%emt 0:01:31]} Qxe7 {[%emt 0:00:04]} 13. Rae1 {[%emt 0:00:54]} a5 {[%emt 0:14:43]} 14. Nd2 {[%emt 0:09:05]} Nxd2 {[%emt 0:13:43]} 15. Qxd2 {[%emt 0:00:05]} Nf8 {[%emt 0:02:13] The position is equal.} 16. Na4 {[%emt 0:19:43]} Qd8 {[%emt 0:08:03]} 17. Qc2 {[%emt 0:07:54]} Bg4 {[%emt 0:04:00]} 18. a3 {[%emt 0:13:46]} Bh5 {[%emt 0:06:13]} 19. Rb1 {[%emt 0:03:22]} Ng6 {[%emt 0:06:28]} 20. Rbe1 {[%emt 0:14:47]} Nf8 {[%emt 0:13:05]} 21. Rb1 {[%emt 0:00:27]} Bg6 {[%emt 0:00:18]} 22. Nc5 {[%emt 0:01:13]} Bxd3 {[%emt 0:02:18]} 23. Nxd3 {[%emt 0:00:16]} Ng6 {[%emt 0:07:09]} 24. Qd1 {[%emt 0:00:39]} Qg5 {[%emt 0:00:56]} 25. Qf3 {[%emt 0:00:16]} Re4 {[%emt 0:00:17]} (25... Nh4 $11 26. Qg3 Qxg3 27. hxg3 Nf5) 26. g3 {[%emt 0:01:20]} (26. Qh3 $1 $14) 26... Rae8 {[%emt 0:01:32]} (26... Nh4 $11 27. Qd1 Nf5) 27. Qg2 {[%emt 0:00:40]} (27. b4 $14) 27... Qh5 {[%emt 0:02:30][%cal Og6h4] White must now prevent ...Nh4!} (27... Qf5 $5 28. h3 R4e6 $17) 28. Nf4 $2 {[%emt 0:00:21] [#]} (28. h3 $11 {and White stays safe.}) 28... Nxf4 $19 {[%emt 0:00:14]} 29. gxf4 {[%emt 0:00:03]} (29. exf4 Rxd4 30. Rfe1) 29... R8e6 {[%emt 0:00:02] Weighted Error Value: White=0.74/Black=0.16 (very precise) .  Loses game:     	White=1     	---        Mistake:       	White=3     	Black=2      Inaccurate:     	White=2     	Black=3      OK:         	White=2     	Black=3      Best:        	---       	Black=1} 0-1

[Event "45th FIDE Womens Olympiad 2024"]
[Site "Budapest"]
[Date "2024.09.12"]
[Round "2.23"]
[White "Gaponenko, Inna"]
[Black "Baginskaite, Kamile"]
[Result "1-0"]
[ECO "B90"]
[WhiteElo "2324"]
[BlackElo "2103"]
[Annotator "TA"]
[PlyCount "63"]
[EventDate "2024.09.05"]
[EventType "team-tourn"]
[EventCountry "HUN"]
[SourceTitle "playchess.com"]
[Source "ChessBase"]
[SourceQuality "1"]
[WhiteTeam "Ukraine"]
[BlackTeam "Lithuania"]
[WhiteTeamCountry "UKR"]
[BlackTeamCountry "LTU"]
[TimeControl "40/5400+30:1800+30"]

{[%evp 15,63,17,14,3,8,0,0,-37,35,3,14,8,25,31,54,33,63,57,44,20,30,15,20,0,0,0,-10,-39,-31,-13,0,-62,-74,-78,-20,-33,-39,-81,-18,-13,0,0,89,75,64,19,58,0,1105,1023]} 1. e4 {[%emt 0:00:04]} c5 {[%emt 0:00:12]} 2. Nf3 {[%emt 0:00:08]} d6 {[%emt 0:00:14]} 3. d4 {[%emt 0:00:06]} cxd4 {[%emt 0:00:09]} 4. Nxd4 {[%emt 0:00:06]} Nf6 {[%emt 0:00:06]} 5. Nc3 {[%emt 0:00:05]} a6 {[%emt 0:00:04]} 6. Be3 {[%emt 0:00:09]} e5 {[%emt 0:00:27]} 7. Nb3 {[%emt 0:00:06]} Be6 {[%emt 0:00:39]} 8. Qd2 {[%emt 0:00:13]} Nbd7 {[%emt 0:04:36]} 9. O-O-O {[%emt 0:00:15]} Be7 {[%emt 0:03:44]} 10. f4 {[%emt 0:02:43]} b5 {[%emt 0:03:05]} 11. h3 {[%emt 0:28:50] The position is equal.} h5 {[%emt 0:12:49]} (11... O-O $15) 12. Be2 {[%emt 0:17:51]} h4 {[%emt 0:05:25]} 13. Rhe1 {[%emt 0:05:32]} Rc8 {[%emt 0:09:52]} 14. Kb1 {[%emt 0:04:29]} Qc7 {[%emt 0:17:16]} 15. Nd5 {[%emt 0:26:45]} Nxd5 {[%emt 0:00:44]} 16. exd5 {[%emt 0:00:02]} Bf5 {[%emt 0:00:07]} 17. Bd3 {[%emt 0:00:03]} Bxd3 {[%emt 0:00:53]} 18. Qxd3 {[%emt 0:00:03]} O-O {[%emt 0:07:27]} 19. Bd2 {[%emt 0:00:48]} Bf6 {[%emt 0:07:56]} 20. Re4 {[%emt 0:05:35]} exf4 {[%emt 0:04:08]} 21. Ba5 {[%emt 0:01:13]} Qa7 {[%emt 0:02:31] And now ...Ne5 would win.} 22. Rxf4 {[%emt 0:00:16]} Rfe8 {[%emt 0:06:21]} 23. Be1 {[%emt 0:01:14]} ({White should play} 23. Nd4 $11) 23... Ne5 {[%emt 0:04:06]} 24. Qf1 {[%emt 0:01:23]} Ng6 {[%emt 0:01:27]} ({Better is} 24... Qc7 $17 25. Bc3 Bg5) 25. Rxf6 $11 {[%emt 0:03:59]} gxf6 {[%emt 0:00:01]} 26. Nd4 {[%emt 0:00:02]} Rc4 {[%emt 0:00:48] Dodges a3} ({Don't play} 26... Qc5 27. Bc3 b4 (27... Qxd5 28. Nf5 $11) 28. Qxf6 Qxd5 (28... bxc3 $2 29. Nf5 $18) 29. Bxb4 $11) (26... Re4 $17 27. Bc3 Rxc3 28. bxc3 Qc5 29. Qxf6 Qxc3 (29... Qxd5 30. Rf1 $16)) 27. Bc3 {[%emt 0:01:23][%cal Od4c6] [#]} Rxc3 $1 {[%emt 0:07:59]} 28. bxc3 {[%emt 0:00:01]} Qe7 {[%emt 0:00:19]} (28... Qc5 $11 {remains equal.}) 29. Nf5 $16 {[%emt 0:00:46] White is more active.} Qe5 {[%emt 0:00:22]} 30. Qf3 {[%emt 0:00:21]} Rc8 {[%emt 0:00:48]} 31. Rd3 {[%emt 0:00:10]} ({White should try} 31. Rd4 $1 $14 Kf8 32. Kb2 (32. Nxh4 $2 {too greedy.} Nxh4 33. Qf2 Nxg2 $19)) 31... Qf4 $2 {[%emt 0:00:42][%mdl 8192] [#]} (31... Qe1+ $11 32. Rd1 Qe5 (32... Qxc3 33. Qxc3 Rxc3 34. Nxd6 $16)) 32. Qxf4 {[%emt 0:00:12] Weighted Error Value: White=0.21 (precise) /Black=0.26 (precise) .  Loses game:     	---       	Black=1      Mistake:       	White=2     	Black=4      Inaccurate:     	White=5     	Black=2      OK:         	White=5     	Black=8      Best:        	White=2     	---} 1-0

[Event "45th FIDE Womens Olympiad 2024"]
[Site "Budapest"]
[Date "2024.09.12"]
[Round "2.23"]
[White "Yeshey lhaden"]
[Black "Chen, I-Chen"]
[Result "0-1"]
[ECO "D00"]
[WhiteElo "1514"]
[BlackElo "1771"]
[Annotator "NA"]
[PlyCount "86"]
[EventDate "2024.09.05"]
[EventType "team-tourn"]
[EventCountry "HUN"]
[SourceTitle "playchess.com"]
[Source "ChessBase"]
[SourceQuality "1"]
[WhiteTeam "Bhutan"]
[BlackTeam "Chinese Taipei"]
[WhiteTeamCountry "BTN"]
[BlackTeamCountry "TPE"]
[TimeControl "40/5400+30:1800+30"]

1. d4 Nf6 2. Bf4 e6 3. e3 d5 4. a3 c5 5. Bb5+ Nc6 6. Nf3 Qb6 7. Nc3 a6 8. Bxc6+ bxc6 9. Na4 Qa5+ 10. c3 c4 11. b4 Qd8 12. Ne5 Bd7 13. O-O a5 14. Qc2 Be7 15. Rfb1 O-O 16. Nc5 Qc8 17. a4 h6 18. bxa5 Bxc5 19. dxc5 Rxa5 20. Rb6 Ne4 21. Rab1 Ra8 22. Qb2 Nxc5 23. Qa3 Nb3 24. Qe7 Qd8 25. Qxd7 Qxb6 26. Nxc6 Ra6 27. Ne7+ Kh8 28. Be5 Qd8 29. Ng6+ Kg8 30. Ne7+ Kh7 31. Qb7 Qa8 32. Qc7 Ra7 33. Qd6 Rd8 34. Qa3 Rxa4 35. Qb2 Ra2 36. g3 Rxb2 37. Rxb2 Qa1+ 38. Kg2 Qxb2 39. h4 Nd2 40. Kh3 Qb1 41. Kg4 Qe4+ 42. Bf4 Qf3+ 43. Kh3 h5 0-1

[Event "45th FIDE Womens Olympiad 2024"]
[Site "Budapest"]
[Date "2024.09.12"]
[Round "2.24"]
[White "Simkunaite, Gabija"]
[Black "Doluhanova, Evgeniya"]
[Result "1/2-1/2"]
[ECO "C47"]
[WhiteElo "2005"]
[BlackElo "2304"]
[Annotator "ChessBase"]
[PlyCount "82"]
[EventDate "2024.09.05"]
[EventType "team-tourn"]
[EventCountry "HUN"]
[SourceTitle "playchess.com"]
[Source "ChessBase"]
[SourceQuality "1"]
[WhiteTeam "Lithuania"]
[BlackTeam "Ukraine"]
[WhiteTeamCountry "LTU"]
[BlackTeamCountry "UKR"]
[TimeControl "40/5400+30:1800+30"]

1. e4 {[%emt 0:00:11]} e5 {[%emt 0:00:17]} 2. Nf3 {[%emt 0:00:09]} Nc6 {[%emt 0:00:03]} 3. Nc3 {[%emt 0:00:31]} Nf6 {[%emt 0:00:06]} 4. d4 {[%emt 0:00:34]} exd4 {[%emt 0:00:05]} 5. Nxd4 {[%emt 0:00:08]} Bb4 {[%emt 0:00:02]} 6. Nxc6 {[%emt 0:00:30]} bxc6 {[%emt 0:00:04]} 7. Bd3 {[%emt 0:00:33]} d5 {[%emt 0:00:06]} 8. exd5 {[%emt 0:01:29]} O-O {[%emt 0:00:11]} 9. O-O {[%emt 0:00:22]} cxd5 {[%emt 0:00:07]} 10. h3 {[%emt 0:00:11]} c6 {[%emt 0:00:07]} 11. Qf3 {[%emt 0:01:40]} Nd7 {[%emt 0:00:18]} 12. Qf5 {[%emt 0:06:51]} g6 {[%emt 0:07:16]} 13. Qf4 {[%emt 0:05:18]} Qe7 {[%emt 0:03:35]} 14. Qg3 {[%emt 0:09:57]} Nc5 {[%emt 0:04:30]} 15. Bg5 {[%emt 0:03:32]} f6 {[%emt 0:19:42]} 16. Bh6 {[%emt 0:10:13]} Rd8 {[%emt 0:04:02]} 17. a3 {[%emt 0:24:12]} Nxd3 {[%emt 0:15:01]} 18. axb4 {[%emt 0:05:29]} Nxb2 {[%emt 0:07:03]} 19. Rfe1 {[%emt 0:01:27]} Qf7 {[%emt 0:00:35]} 20. Ne2 {[%emt 0:05:31]} Nc4 {[%emt 0:14:45]} 21. Nd4 {[%emt 0:03:26]} Bd7 {[%emt 0:00:47]} 22. Re2 {[%emt 0:04:03]} Re8 {[%emt 0:13:38]} 23. Rxe8+ {[%emt 0:03:12]} Qxe8 {[%emt 0:00:19]} 24. Qc7 {[%emt 0:02:33]} a6 {[%emt 0:01:44]} 25. c3 {[%emt 0:07:11]} Ne5 {[%emt 0:03:53]} 26. Bf4 {[%emt 0:02:05]} Nf7 {[%emt 0:02:58]} 27. Bd2 {[%emt 0:00:55]} Qd8 {[%emt 0:01:12]} 28. Qg3 {[%emt 0:00:40]} a5 {[%emt 0:00:34]} 29. bxa5 {[%emt 0:00:48]} Rxa5 {[%emt 0:00:06]} 30. Rb1 {[%emt 0:00:15]} Ra8 {[%emt 0:00:19]} 31. Bf4 {[%emt 0:00:58]} Qe8 {[%emt 0:00:47]} 32. Nf3 {[%emt 0:00:48]} Bf5 {[%emt 0:00:45]} 33. Re1 {[%emt 0:00:15]} Qd7 {[%emt 0:00:29]} 34. Nd4 {[%emt 0:00:12]} c5 {[%emt 0:00:35]} 35. Nxf5 {[%emt 0:00:22]} Qxf5 {[%emt 0:00:07]} 36. Qe3 {[%emt 0:00:12]} Rc8 {[%emt 0:00:43]} 37. g4 {[%emt 0:00:40]} Qd7 {[%emt 0:00:16]} 38. Rd1 {[%emt 0:01:26]} g5 {[%emt 0:00:57]} 39. Bg3 {[%emt 0:00:21]} f5 {[%emt 0:00:49]} 40. gxf5 {[%emt 0:00:41]} Qxf5 {[%emt 0:00:19]} 41. Kh2 {[%emt 0:02:48]} Kg7 {[%emt 0:20:45]} 1/2-1/2

[Event "45th FIDE Womens Olympiad 2024"]
[Site "Budapest"]
[Date "2024.09.12"]
[Round "2.25"]
[White "Ryjanova, Julia"]
[Black "Mammadzada, Gunay"]
[Result "0-1"]
[ECO "D23"]
[WhiteElo "2255"]
[BlackElo "2433"]
[Annotator "RC"]
[PlyCount "170"]
[EventDate "2024.09.05"]
[EventType "team-tourn"]
[EventCountry "HUN"]
[SourceTitle "playchess.com"]
[Source "ChessBase"]
[SourceQuality "1"]
[WhiteTeam "Australia"]
[BlackTeam "Azerbaijan"]
[WhiteTeamCountry "AUS"]
[BlackTeamCountry "AZE"]
[TimeControl "40/5400+30:1800+30"]

1. d4 {[%emt 0:00:04]} d5 {[%emt 0:00:08]} 2. c4 {[%emt 0:00:10]} c6 {[%emt 0:00:04]} 3. Nf3 {[%emt 0:00:14]} Nf6 {[%emt 0:00:06]} 4. Qc2 {[%emt 0:00:14]} dxc4 {[%emt 0:02:10]} 5. Qxc4 {[%emt 0:00:57]} Bf5 {[%emt 0:03:01]} 6. g3 {[%emt 0:02:15]} e6 {[%emt 0:01:23]} 7. Bg2 {[%emt 0:00:34]} Be7 {[%emt 0:00:05]} 8. Nc3 {[%emt 0:07:48]} O-O {[%emt 0:08:04]} 9. O-O {[%emt 0:01:39]} Nbd7 {[%emt 0:05:44]} 10. Re1 {[%emt 0:18:28]} Ne4 {[%emt 0:14:29]} 11. Qb3 {[%emt 0:06:46]} Nb6 {[%emt 0:04:31]} 12. a4 {[%emt 0:09:48]} a5 {[%emt 0:14:41]} 13. Nh4 {[%emt 0:12:45]} Bxh4 {[%emt 0:03:47]} 14. Nxe4 {[%emt 0:04:43]} Be7 {[%emt 0:01:28]} 15. e3 {[%emt 0:12:16]} Bb4 {[%emt 0:02:32]} 16. Rd1 {[%emt 0:03:42]} Bg4 {[%emt 0:02:42]} 17. f3 {[%emt 0:00:12]} Bh5 {[%emt 0:02:09]} 18. Bd2 {[%emt 0:00:52]} Nd5 {[%emt 0:03:01]} 19. Nf2 {[%emt 0:02:24]} Qe7 {[%emt 0:08:05]} 20. Bxb4 {[%emt 0:03:48]} Nxb4 {[%emt 0:01:11]} 21. Nd3 {[%emt 0:00:50]} Nd5 {[%emt 0:01:36]} 22. Re1 {[%emt 0:01:50]} Ra6 {[%emt 0:01:43]} 23. Qc2 {[%emt 0:04:40]} Rb6 {[%emt 0:00:49]} 24. Qd2 {[%emt 0:00:23]} Nb4 {[%emt 0:04:09]} 25. Ne5 {[%emt 0:00:28]} Rd8 {[%emt 0:01:41]} 26. Nc4 {[%emt 0:01:30]} Ra6 {[%emt 0:00:00]} 27. Qc3 {[%emt 0:00:20]} f6 {[%emt 0:01:30]} 28. Nd2 {[%emt 0:01:30]} c5 {[%emt 0:03:11]} 29. dxc5 {[%emt 0:01:31]} Rd3 {[%emt 0:00:22]} 30. Qc1 {[%emt 0:00:23]} Rc6 {[%emt 0:02:30]} 31. Ne4 {[%emt 0:00:10]} f5 {[%emt 0:01:52]} 32. Nc3 {[%emt 0:00:12]} Qxc5 {[%emt 0:01:04]} 33. h3 {[%emt 0:02:17]} Rc8 {[%emt 0:02:51]} 34. g4 {[%emt 0:00:32]} Be8 {[%emt 0:00:41]} 35. Bf1 {[%emt 0:00:15]} Bc6 {[%emt 0:01:11]} 36. Nb5 {[%emt 0:00:35]} Qe5 {[%emt 0:01:27]} 37. Nd4 {[%emt 0:00:54]} Qg3+ {[%emt 0:01:40]} 38. Bg2 {[%emt 0:00:04]} Rd8 {[%emt 0:00:18]} 39. Rf1 {[%emt 0:00:51]} Qe5 {[%emt 0:01:29]} 40. gxf5 {[%emt 0:00:50]} exf5 {[%emt 0:00:29]} 41. f4 {[%emt 0:09:37]} Qxe3+ {[%emt 0:05:59]} 42. Qxe3 {[%emt 0:00:07]} Rxe3 {[%emt 0:00:03]} 43. Nxc6 {[%emt 0:09:36]} Nxc6 {[%emt 0:05:14]} 44. Rfd1 {[%emt 0:01:43]} Nd4 {[%emt 0:05:40]} 45. Kf1 {[%emt 0:05:58]} b6 {[%emt 0:04:11]} 46. Rac1 {[%emt 0:01:15]} Re6 {[%emt 0:04:17]} 47. Rc7 {[%emt 0:01:56]} Red6 {[%emt 0:00:02]} 48. Re1 {[%emt 0:02:34]} R8d7 {[%emt 0:02:04]} 49. Re7 {[%emt 0:00:43]} Rxc7 {[%emt 0:00:12]} 50. Rxc7 {[%emt 0:00:03]} Ne6 {[%emt 0:00:14]} 51. Rc4 {[%emt 0:00:33]} Kf7 {[%emt 0:01:52]} 52. Ke2 {[%emt 0:00:19]} Nd4+ {[%emt 0:04:00]} 53. Ke3 {[%emt 0:00:23]} Nb3 {[%emt 0:00:13]} 54. Rc6 {[%emt 0:02:01]} Rxc6 {[%emt 0:01:04]} 55. Bxc6 {[%emt 0:00:03]} Ke6 {[%emt 0:00:04]} 56. Be8 {[%emt 0:01:06]} Ke7 {[%emt 0:01:09]} 57. Bb5 {[%emt 0:00:17]} Nc5 {[%emt 0:00:18]} 58. Kd4 {[%emt 0:00:50]} Kd6 {[%emt 0:00:03]} 59. Be8 {[%emt 0:00:13]} Ne6+ {[%emt 0:01:28]} 60. Ke3 {[%emt 0:00:04]} Ke7 {[%emt 0:01:54]} 61. Bb5 {[%emt 0:00:18]} g5 {[%emt 0:00:11]} 62. fxg5 {[%emt 0:00:21]} Nxg5 {[%emt 0:00:01]} 63. h4 {[%emt 0:01:33]} Ne6 {[%emt 0:00:01]} 64. Kf2 {[%emt 0:00:35]} Kf6 {[%emt 0:00:06]} 65. Ke3 {[%emt 0:00:10]} Ke5 {[%emt 0:00:07]} 66. Bd3 {[%emt 0:00:45]} h6 {[%emt 0:00:01]} 67. Kf3 {[%emt 0:00:26]} Nf4 {[%emt 0:01:21]} 68. Bb1 {[%emt 0:00:35]} Ne6 {[%emt 0:01:01]} 69. Ke3 {[%emt 0:00:19]} Nd4 {[%emt 0:00:21]} 70. Bd3 {[%emt 0:00:35]} f4+ {[%emt 0:00:22]} 71. Kf2 {[%emt 0:00:16]} Nf5 {[%emt 0:00:16]} 72. h5 {[%emt 0:00:38]} Ng3 {[%emt 0:00:54]} 73. Bg6 {[%emt 0:00:29]} Kf6 {[%emt 0:00:11]} 74. Kf3 {[%emt 0:00:32]} Kg5 {[%emt 0:00:01]} 75. Be8 {[%emt 0:00:39]} Nxh5 {[%emt 0:01:20]} 76. Bd7 {[%emt 0:00:21]} Nf6 {[%emt 0:00:44]} 77. Bc8 {[%emt 0:00:23]} h5 {[%emt 0:00:07]} 78. Be6 {[%emt 0:00:35]} Ng4 {[%emt 0:00:34]} 79. Bc8 {[%emt 0:00:17]} Ne5+ {[%emt 0:00:21]} 80. Kg2 {[%emt 0:00:56]} Nc4 {[%emt 0:00:21]} 81. b3 {[%emt 0:00:17]} Nd2 {[%emt 0:00:05]} 82. Be6 {[%emt 0:00:14]} f3+ {[%emt 0:00:25]} 83. Kg3 {[%emt 0:00:52]} h4+ {[%emt 0:00:01]} 84. Kf2 {[%emt 0:00:05]} Kf4 {[%emt 0:00:05]} 85. Bd5 {[%emt 0:00:34]} h3 {[%emt 0:00:16]} 0-1

[Event "45th FIDE Womens Olympiad 2024"]
[Site "Budapest"]
[Date "2024.09.12"]
[Round "2.26"]
[White "Beydullayeva, Govhar"]
[Black "Zhang, Jilin"]
[Result "1/2-1/2"]
[ECO "D27"]
[WhiteElo "2395"]
[BlackElo "2155"]
[Annotator "TA"]
[PlyCount "109"]
[EventDate "2024.09.05"]
[EventType "team-tourn"]
[EventCountry "HUN"]
[SourceTitle "playchess.com"]
[Source "ChessBase"]
[SourceQuality "1"]
[WhiteTeam "Azerbaijan"]
[BlackTeam "Australia"]
[WhiteTeamCountry "AZE"]
[BlackTeamCountry "AUS"]
[TimeControl "40/5400+30:1800+30"]

{[%evp 11,109,35,20,10,56,39,45,12,14,-50,145,135,173,165,193,161,181,202,187,184,195,178,206,199,191,204,206,157,172,109,105,58,60,54,69,58,63,58,58,57,54,54,68,75,65,43,58,16,27,13,19,16,66,42,71,62,65,39,52,69,146,115,143,137,245,238,254,212,257,257,393,379,366,309,378,345,479,497,617,444,618,432,520,530,510,529,847,839,836,573,870,864,914,905,814,0,585,0,677,0]} 1. d4 {[%emt 0:00:03]} d5 {[%emt 0:00:07]} 2. c4 {[%emt 0:00:05]} dxc4 {[%emt 0:00:05]} 3. Nf3 {[%emt 0:00:07]} Nf6 {[%emt 0:00:06]} 4. e3 {[%emt 0:00:05]} e6 {[%emt 0:00:11]} 5. Bxc4 {[%emt 0:00:14]} c5 {[%emt 0:00:05]} 6. O-O {[%emt 0:00:55]} a6 {[%emt 0:00:06]} 7. Re1 {[%emt 0:03:42]} Nbd7 {[%emt 0:04:29]} (7... cxd4 $11 {was preferrable.} 8. exd4 b5) 8. e4 $14 {[%emt 0:06:19]} b5 {[%emt 0:04:07]} 9. Bd3 {[%emt 0:04:51] White is slightly better.} (9. Bd5 $5 Nxd5 (9... exd5 $2 {is the wrong capture.} 10. exd5+ Be7 11. d6 $18) 10. exd5 $14) 9... Bb7 {[%emt 0:04:41]} 10. d5 {[%emt 0:10:18]} ({White should play} 10. a4 $11) 10... e5 $2 {[%emt 0:07:27] [#]} (10... c4 $15 {keeps the upper hand.} 11. Bc2 Bc5) 11. b3 $1 $16 {[%emt 0:03:10]} Qc7 {[%emt 0:07:06]} 12. Nbd2 {[%emt 0:07:09]} Rb8 {[%emt 0:16:06]} 13. a4 {[%emt 0:04:59]} Bc8 {[%emt 0:00:39]} 14. Qe2 {[%emt 0:01:43]} Qb6 {[%emt 0:00:52]} 15. Nb1 {[%emt 0:03:31]} Bd6 {[%emt 0:13:29]} 16. axb5 {[%emt 0:03:53]} axb5 {[%emt 0:00:06][%cal Ba6b5,Bb5b4][%mdl 32]} 17. Nc3 {[%emt 0:00:05]} b4 {[%emt 0:04:00]} 18. Nb5 {[%emt 0:13:23]} O-O {[%emt 0:01:00]} 19. Qa2 {[%emt 0:04:23] Wards off Ba6} Ne8 {[%emt 0:05:01]} 20. Nxd6 {[%emt 0:05:44]} (20. Qa5 $18) 20... Nxd6 {[%emt 0:01:41]} 21. Qa5 {[%emt 0:01:35]} (21. Qc2 $16) 21... Qxa5 $1 $14 {[%emt 0:04:11]} 22. Rxa5 {[%emt 0:00:01]} Bb7 {[%emt 0:00:54]} 23. Bb2 {[%emt 0:06:20] White is more active.} f6 {[%emt 0:01:06]} 24. Nd2 {[%emt 0:01:16]} Ra8 {[%emt 0:03:24]} 25. Rea1 {[%emt 0:02:11]} Rxa5 {[%emt 0:00:42]} 26. Rxa5 {[%emt 0:00:01]} Ra8 {[%emt 0:00:15]} 27. Rxa8+ {[%emt 0:01:59]} Bxa8 {[%emt 0:00:01]} 28. h4 {[%emt 0:01:09]} Kf7 {[%emt 0:01:04]} 29. g3 {[%emt 0:00:30]} Ke7 {[%emt 0:15:22]} 30. f4 {[%emt 0:00:19]} Bb7 {[%emt 0:01:08]} 31. Kf2 {[%emt 0:00:51]} Nf7 {[%emt 0:02:28]} (31... g6 $11) 32. Nc4 {[%emt 0:01:30]} exf4 {[%emt 0:03:51]} 33. gxf4 {[%emt 0:00:36]} Ba6 {[%emt 0:00:03]} 34. Ke3 {[%emt 0:04:58]} Bxc4 {[%emt 0:00:56]} 35. Bxc4 {[%emt 0:03:40][%mdl 4096] Endgame. KBB-KNN} Kd6 {[%emt 0:00:21]} (35... g6 $14) 36. Bf1 $16 {[%emt 0:01:38]} Nb6 {[%emt 0:00:25]} 37. Kd3 {[%emt 0:01:54]} Nh6 {[%emt 0:00:50]} (37... Ke7 $16 38. Bc1 Nh8) 38. Bh3 $18 {[%emt 0:00:53] Strongly threatening Be6.} Nf7 {[%emt 0:00:06]} 39. Be6 {[%emt 0:01:38]} Nd8 {[%emt 0:00:17]} 40. Bg8 {[%emt 0:01:29]} h6 {[%emt 0:01:01]} (40... Ke7 $142 41. Bxh7 Nf7) 41. e5+ {[%emt 0:30:41]} Ke7 {[%emt 0:04:27]} 42. d6+ {[%emt 0:00:00]} Kd7 {[%emt 0:00:18]} 43. Bh7 {[%emt 0:00:00]} ({But not} 43. exf6 gxf6 44. Bxf6 Nc6 $18) 43... fxe5 {[%emt 0:00:34]} 44. fxe5 {[%emt 0:00:00]} g5 {[%emt 0:00:44][%cal Bg7g5,Bg5g4,Bg4g3][%mdl 32]} 45. Bf5+ {[%emt 0:00:00]} Kc6 {[%emt 0:00:12]} 46. Be4+ {[%emt 0:00:00]} Kd7 {[%emt 0:00:08]} 47. h5 {[%emt 0:00:00]} Ke6 {[%emt 0:02:07] [#]} 48. Bh7 $1 {[%emt 0:00:00]} g4 {[%emt 0:11:08]} 49. Ke4 {[%emt 0:00:00]} g3 {[%emt 0:00:51]} 50. Bf5+ {[%emt 0:00:00]} Kf7 {[%emt 0:00:05] White must now prevent ...g2.} 51. Kf3 {[%emt 0:00:00]} Ne6 {[%emt 0:03:51]} 52. Bg6+ {[%emt 0:00:00]} Kg7 {[%emt 0:00:48]} 53. Bf5 {[%emt 0:01:13]} Kf7 {[%emt 0:00:16]} 54. Bg6+ {[%emt 0:00:03]} Kg7 $1 {[%emt 0:00:04]} 55. Bf5 $2 {[%emt 0:00:12] Weighted Error Value: White=0.56/Black=0.31.  Missed win:     	White=1     	---        Mistake:       	White=3     	Black=6      Inaccurate:     	White=3     	Black=2      OK:         	White=16    	Black=15     Best:        	White=2     	Black=1      Strong:       	White=2     	Black=2} ({Better is} 55. Kxg3 $18 c4 56. Kg4) 1/2-1/2

[Event "45th FIDE Womens Olympiad 2024"]
[Site "Budapest"]
[Date "2024.09.12"]
[Round "2.26"]
[White "Lazzarini, Giulia"]
[Black "Leung, Hoi Ting"]
[Result "0-1"]
[ECO "C02"]
[WhiteElo "1520"]
[BlackElo "1619"]
[Annotator "NA"]
[PlyCount "48"]
[EventDate "2024.09.05"]
[EventType "team-tourn"]
[EventCountry "HUN"]
[SourceTitle "playchess.com"]
[Source "ChessBase"]
[SourceQuality "1"]
[WhiteTeam "San Marino"]
[BlackTeam "Hong Kong, China"]
[WhiteTeamCountry "SMR"]
[BlackTeamCountry "HKG"]
[TimeControl "40/5400+30:1800+30"]

1. e4 e6 2. d4 d5 3. e5 c5 4. Nf3 Nc6 5. Be2 cxd4 6. O-O Qb6 7. Nbd2 Nge7 8. Nb3 Ng6 9. Nbxd4 Ncxe5 10. b3 Bd6 11. Bb2 O-O 12. Re1 Bd7 13. a4 a6 14. a5 Qc7 15. c3 Rac8 16. b4 Nxf3+ 17. Nxf3 Ne5 18. Rc1 Nxf3+ 19. Bxf3 Bxh2+ 20. Kh1 Bf4 21. Rc2 Ba4 22. g3 Bxc2 23. Qxc2 Be5 24. Bd1 Bxc3 0-1